fUSD/lending_fUSD_20240925
["ID","MTS","AMOUNT","RATE_DAILY","PERIOD"]
[339178235,1727275848857,-615.62,0.00012898,2]
[339178237,1727275848867,-500.0,0.00012898,2]
[339178239,1727275848876,-409.24,0.00012898,2]
[339178241,1727275848886,-500.0,0.00012898,2]
[339178243,1727275848896,-500.0,0.00012898,2]
[339178245,1727275848906,-500.0,0.00012898,2]
[339178247,1727275848916,-500.0,0.00012898,2]
[339178249,1727275848926,-500.0,0.00012898,2]
[339178251,1727275848935,-516.64,0.00012898,2]
[339178253,1727275848945,-516.64,0.00012898,2]
[339178255,1727275848955,-500.0,0.00012898,7]
[339178258,1727275848965,-500.0,0.00012898,2]
[339178260,1727275848975,-500.0,0.00012898,2]
[339178262,1727275848985,-500.0,0.00012898,2]
[339178264,1727275848995,-500.0,0.00012898,2]
[339178266,1727275849005,-500.0,0.00012898,2]
[339178267,1727275849015,-500.0,0.00012898,2]
[339178269,1727275849026,-1348.86,0.00012898,2]
[339178271,1727275849036,-500.0,0.00012898,2]
[339178273,1727275849045,-500.0,0.00012898,2]
[339178275,1727275849054,-500.0,0.00012898,2]
[339178277,1727275849063,-500.0,0.00012898,2]
[339178279,1727275849073,-500.0,0.00012898,2]
[339178281,1727275849082,-500.0,0.00012898,2]
[339178283,1727275849092,-500.0,0.00012898,2]
[339178285,1727275849103,-279.79927244,0.00012898,2]
[339178287,1727275849112,-943.17,0.00012898,2]
[339178289,1727275849122,-500.0,0.00012898,2]
[339178291,1727275849132,-500.0,0.00012898,2]
[339178292,1727275849142,-500.0,0.00012898,2]
[339178294,1727275849151,-544.64,0.00012898,2]
[339178296,1727275849160,-500.0,0.00012898,2]
[339178297,1727275849170,-500.0,0.00012898,2]
[339178298,1727275849179,-500.0,0.00012898,2]
[339178299,1727275849188,-151.16962535,0.00012899,2]
[339178300,1727275849198,-1836.76,0.00012899,2]
[339178301,1727275849207,-500.0,0.00012899,2]
[339178302,1727275849217,-500.0,0.00012899,2]
[339178303,1727275849226,-500.0,0.00012899,2]
[339178304,1727275849236,-500.0,0.00012899,2]
[339178305,1727275849246,-500.0,0.00012899,2]
[339178306,1727275849256,-500.0,0.00012899,2]
[339178307,1727275849266,-500.0,0.00012899,2]
[339178308,1727275849276,-500.0,0.00012899,2]
[339178309,1727275849286,-500.0,0.00012899,2]
[339178310,1727275849296,-2172.78,0.00012899,2]
[339178311,1727275849306,-577.48,0.00012899,2]
[339178312,1727275849316,-436.78,0.00012899,2]
[339178313,1727275849326,-500.0,0.00012899,2]
[339178314,1727275849336,-500.0,0.00012899,2]
[339178315,1727275849348,-500.0,0.00012899,2]
[339178316,1727275849358,-593.16,0.00012899,2]
[339178317,1727275849368,-500.0,0.00012899,2]
[339178318,1727275849379,-205.2,0.00012899,2]
[339178319,1727275849388,-500.0,0.00012899,2]
[339178320,1727275849398,-500.0,0.00012899,2]
[339178321,1727275849409,-500.0,0.00012899,2]
[339178322,1727275849419,-500.0,0.00012899,2]
[339178323,1727275849429,-500.0,0.00012899,2]
[339178324,1727275849438,-500.0,0.00012899,2]
[339178325,1727275849449,-500.0,0.00012899,2]
[339178326,1727275849459,-500.0,0.00012899,2]
[339178327,1727275849469,-500.0,0.00012899,2]
[339178328,1727275849479,-500.0,0.00012899,2]
[339178329,1727275849488,-500.0,0.00012899,2]
[339178330,1727275849498,-516.38,0.00012899,2]
[339178331,1727275849508,-1482.78,0.00012899,2]
[339178332,1727275849518,-500.0,0.00012899,2]
[339178333,1727275849528,-767.87,0.00012899,2]
[339178334,1727275849539,-500.0,0.00012899,2]
[339178335,1727275849551,-500.0,0.00012899,2]
[339178336,1727275849562,-2076.07,0.00012899,2]
[339178337,1727275849572,-500.0,0.00012899,2]
[339178338,1727275849584,-940.22,0.00012899,2]
[339178339,1727275849594,-500.0,0.00012899,2]
[339178340,1727275849614,-727.6,0.00012899,2]
[339178341,1727275849625,-601.09,0.00012899,2]
[339178342,1727275849636,-712.95,0.00012899,2]
[339178343,1727275849645,-500.0,0.00012899,2]
[339178344,1727275849655,-500.0,0.00012899,2]
[339178345,1727275849667,-566.33,0.00012899,2]
[339178346,1727275849677,-500.0,0.00012899,2]
[339178347,1727275849687,-500.0,0.00012899,2]
[339178348,1727275849698,-500.0,0.00012899,2]
[339178349,1727275849708,-500.0,0.00012899,2]
[339178350,1727275849718,-500.0,0.00012899,2]
[339178351,1727275849728,-500.0,0.00012899,2]
[339178352,1727275849739,-500.0,0.00012899,2]
[339178353,1727275849749,-500.0,0.00012899,2]
[339178354,1727275849759,-500.0,0.00012899,2]
[339178355,1727275849769,-500.0,0.00012899,2]
[339178356,1727275849780,-500.0,0.00012899,2]
[339178357,1727275849791,-500.0,0.00012899,2]
[339178358,1727275849802,-289.4,0.00012899,2]
[339178359,1727275849812,-377.9,0.00012899,2]
[339178360,1727275849821,-500.0,0.00012899,2]
[339178361,1727275849831,-500.0,0.00012899,2]
[339178362,1727275849841,-500.0,0.00012899,2]
[339178363,1727275849851,-500.0,0.00012899,2]
[339178364,1727275849861,-500.0,0.00012899,2]
[339178365,1727275849871,-1901.8,0.00012899,2]
[339178366,1727275849881,-500.0,0.00012899,2]
[339178367,1727275849891,-500.0,0.00012899,2]
[339178368,1727275849901,-1823.5,0.00012899,2]
[339178369,1727275849912,-500.0,0.00012899,2]
[339178370,1727275849922,-500.0,0.00012899,2]
[339178371,1727275849932,-500.0,0.00012899,2]
[339178372,1727275849942,-500.0,0.00012899,2]
[339178373,1727275849952,-500.0,0.00012899,2]
[339178374,1727275849962,-3194.27,0.00012899,2]
[339178375,1727275849972,-500.0,0.00012899,2]
[339178376,1727275849981,-500.0,0.00012899,2]
[339178377,1727275849991,-1825.05,0.00012899,2]
[339178378,1727275850002,-500.0,0.00012899,2]
[339178379,1727275850012,-500.0,0.00012899,2]
[339178380,1727275850027,-500.0,0.00012899,2]
[339178381,1727275850038,-500.0,0.00012899,2]
[339178382,1727275850048,-1699.42,0.00012899,2]
[339178383,1727275850059,-500.0,0.00012899,2]
[339178384,1727275850070,-649.86,0.00012899,2]
[339178385,1727275850080,-500.0,0.00012899,2]
[339178386,1727275850091,-500.0,0.00012899,2]
[339178387,1727275850107,-593.55,0.00012899,2]
[339178388,1727275850117,-500.0,0.00012899,2]
[339178389,1727275850133,-500.0,0.00012899,2]
[339178390,1727275850143,-500.0,0.00012899,2]
[339178391,1727275850153,-500.0,0.00012899,2]
[339178392,1727275850164,-500.0,0.00012899,2]
[339178393,1727275850174,-500.0,0.00012899,2]
[339178394,1727275850184,-355.08177431,0.00012899,2]
[339178395,1727275850194,-500.0,0.00012899,2]
[339178396,1727275850204,-597.5,0.00012899,2]
[339178397,1727275850215,-500.0,0.00012899,2]
[339178398,1727275850225,-500.0,0.00012899,2]
[339178399,1727275850234,-500.0,0.00012899,2]
[339178400,1727275850243,-500.0,0.00012899,2]
[339178401,1727275850253,-500.0,0.00012899,2]
[339178402,1727275850263,-500.0,0.00012899,2]
[339178403,1727275850272,-500.0,0.00012899,2]
[339178404,1727275850282,-1127.8038989,0.00012899,2]
[339178405,1727275850292,-500.0,0.00012899,2]
[339178406,1727275850302,-500.0,0.00012899,2]
[339178407,1727275850313,-788.89,0.00012899,2]
[339178408,1727275850323,-463.62521196,0.00012899,2]
[339178409,1727275850333,-500.0,0.00012899,2]
[339178410,1727275850343,-500.0,0.00012899,2]
[339178411,1727275850353,-770.42,0.00012899,2]
[339178412,1727275850363,-500.0,0.00012899,2]
[339178413,1727275850373,-1058.49,0.00012899,2]
[339178414,1727275850384,-500.0,0.00012899,2]
[339178415,1727275850394,-500.0,0.00012899,2]
[339178416,1727275850403,-500.0,0.00012899,2]
[339178417,1727275850414,-500.0,0.00012899,2]
[339178418,1727275850424,-847.3,0.00012899,2]
[339178419,1727275850434,-384.49,0.00012899,2]
[339178420,1727275850444,-544.64,0.00012899,2]
[339178421,1727275850454,-500.0,0.00012899,2]
[339178422,1727275850467,-500.0,0.00012899,2]
[339178423,1727275850477,-500.0,0.00012899,2]
[339178424,1727275850488,-500.0,0.00012899,2]
[339178425,1727275850498,-500.0,0.00012899,2]
[339178426,1727275850509,-585.04,0.00012899,2]
[339178427,1727275850519,-1127.80389889,0.000129,2]
[339178428,1727275850529,-2985.97,0.000129,2]
[339178429,1727275850539,-199.1,0.000129,2]
[339178430,1727275850550,-114568.69682222,0.000129,2]
[339178431,1727275850580,-1553.4252,0.000129,2]
[339178432,1727275850592,-290.08119832,0.000129,2]
[339178433,1727275850617,-473.3383626,0.000129,2]
[339178434,1727275850629,-5779.81155884,0.000129,2]
[339178435,1727275850676,-5690.71518321,0.000129,2]
[339178436,1727275850689,-748.57520928,0.000129,2]
[339178437,1727275850706,-441.66001173,0.000129,2]
[339178438,1727275851003,-9980.53984627,0.000129,2]
[339178439,1727275851017,-466.32214842,0.000129,2]
[339178440,1727275851030,-746.48651101,0.000129,2]
[339178441,1727275851043,-519.07829482,0.000129,2]
[339178442,1727275851055,-533.89608672,0.000129,2]
[339178443,1727275851068,-521.17192969,0.000129,2]
[339178444,1727275851081,-424.79146568,0.000129,2]
[339178445,1727275851097,-262.14000012,0.000129,2]
[339178446,1727275851110,-1169.55400002,0.000129,2]
[339178447,1727275851128,-321.7549561,0.000129,2]
[339178448,1727275851142,-353.01173433,0.000129,2]
[339178449,1727275851156,-100154.94948062,0.000129,2]
[339178450,1727275851167,-1000.0,0.000129,2]
[339178451,1727275851178,-152.79080492,0.000129,2]
[339178452,1727275851189,-1482.78,0.000129,2]
[339178453,1727275851199,-500.0,0.000129,2]
[339178454,1727275851210,-2076.07,0.000129,2]
[339178455,1727275851221,-500.0,0.000129,2]
[339178456,1727275851232,-940.22,0.000129,2]
[339178457,1727275851242,-500.0,0.000129,2]
[339178458,1727275851253,-727.6,0.000129,2]
[339178459,1727275851264,-712.95,0.000129,2]
[339178460,1727275851276,-566.33,0.000129,2]
[339178461,1727275851287,-500.0,0.000129,2]
[339178462,1727275851298,-500.0,0.000129,2]
[339178463,1727275851308,-500.0,0.000129,2]
[339178464,1727275851319,-500.0,0.000129,2]
[339178465,1727275851330,-500.0,0.000129,2]
[339178466,1727275851341,-500.0,0.000129,2]
[339178467,1727275851356,-574.87511287,0.000129,2]
[339178468,1727275851368,-500.0,0.000129,2]
[339178469,1727275851597,-3167.75900128,0.000129,2]
[339178470,1727275851610,-500.0,0.000129,2]
[339178471,1727275851623,-500.0,0.000129,2]
[339178472,1727275851633,-500.0,0.000129,2]
[339178473,1727275851642,-500.0,0.000129,2]
[339178474,1727275851652,-500.0,0.000129,2]
[339178475,1727275851663,-500.0,0.000129,2]
[339178476,1727275851672,-500.0,0.000129,2]
[339178477,1727275851682,-500.0,0.000129,2]
[339178478,1727275851692,-500.0,0.000129,2]
[339178479,1727275851702,-1699.42,0.000129,2]
[339178480,1727275851711,-649.86,0.000129,2]
[339178481,1727275851721,-453.988428,0.000129,2]
[339178482,1727275851730,-500.0,0.000129,2]
[339178483,1727275851740,-500.0,0.000129,2]
[339178484,1727275851750,-1127.80389889,0.000129,2]
[339178485,1727275851759,-317.85382864,0.000129,2]
[339178486,1727275851769,-500.0,0.000129,2]
[339178487,1727275851778,-788.89,0.000129,2]
[339178488,1727275851788,-500.0,0.000129,2]
[339178489,1727275851798,-1058.49,0.000129,2]
[339178490,1727275851808,-500.0,0.000129,2]
[339178491,1727275851817,-500.0,0.000129,2]
[339178492,1727275851827,-500.0,0.000129,2]
[339178493,1727275851836,-500.0,0.000129,2]
[339178494,1727275851845,-500.0,0.000129,2]
[339178495,1727275851855,-379.6,0.00012901,2]
[339178496,1727275851864,-961.32696,0.00012901,2]
[339178497,1727275851873,-351.981412,0.00012901,2]
[339178498,1727275851883,-169.286687,0.00012901,2]
[339178499,1727275851892,-270.453,0.00012918,2]
[339178500,1727275851901,-180.407,0.00012918,2]
[339178501,1727275851911,-154.893,0.00012927,2]
[339178502,1727275851920,-150.0,0.0001293,2]
[339178503,1727275851929,-1083.515,0.0001293,2]
[339178504,1727275851939,-153.0,0.00012951,2]
[339178505,1727275851948,-499.5489,0.00012973,2]
[339178506,1727275851957,-500.94262012,0.00012973,2]
[339178507,1727275851967,-500.0,0.00012973,2]
[339178508,1727275851976,-500.0,0.00012973,2]
[339178509,1727275851986,-173.29073536,0.00012973,2]
[339178510,1727275851995,-500.0,0.00012973,2]
[339178511,1727275852005,-500.0,0.00012973,2]
[339178512,1727275852014,-150.0,0.00012986,2]
[339178513,1727275852023,-150.0,0.00012986,2]
[339178514,1727275852033,-511.0,0.00012996,2]
[339178515,1727275852042,-500.0,0.00012996,2]
[339178516,1727275852052,-500.0,0.00012996,2]
[339178517,1727275852061,-500.0,0.00012996,2]
[339178518,1727275852071,-500.0,0.00012996,2]
[339178519,1727275852080,-500.0,0.00012996,2]
[339178520,1727275852090,-501.19,0.00012996,2]
[339178521,1727275852101,-512.81,0.00012996,2]
[339178522,1727275852111,-500.0,0.00012996,2]
[339178523,1727275852121,-500.0,0.00012996,2]
[339178524,1727275852130,-500.0,0.00012996,2]
[339178525,1727275852140,-500.0,0.00012996,2]
[339178526,1727275852151,-555.37,0.00012996,2]
[339178527,1727275852162,-500.0,0.00012996,2]
[339178528,1727275852171,-415.9,0.00012996,2]
[339178529,1727275852180,-500.0,0.00012996,2]
[339178530,1727275852189,-500.0,0.00012996,2]
[339178531,1727275852198,-500.0,0.00012996,2]
[339178532,1727275852208,-500.0,0.00012996,2]
[339178533,1727275852217,-500.0,0.00012996,2]
[339178534,1727275852226,-500.0,0.00012996,2]
[339178535,1727275852235,-500.0,0.00012996,2]
[339178536,1727275852244,-500.0,0.00012996,2]
[339178537,1727275852254,-500.0,0.00012996,2]
[339178538,1727275852263,-500.0,0.00012996,2]
[339178539,1727275852272,-1901.8,0.00012996,2]
[339178540,1727275852282,-500.0,0.00012996,2]
[339178541,1727275852291,-1823.5,0.00012996,2]
[339178542,1727275852301,-500.0,0.00012996,2]
[339178543,1727275852310,-500.0,0.00012996,2]
[339178544,1727275852321,-3194.27,0.00012996,2]
[339178545,1727275852330,-500.0,0.00012996,2]
[339178546,1727275852340,-1825.05,0.00012996,2]
[339178547,1727275852353,-560.66,0.00012996,2]
[339178548,1727275852362,-500.0,0.00012996,2]
[339178549,1727275852372,-500.0,0.00012996,2]
[339178550,1727275852382,-500.0,0.00012996,2]
[339178551,1727275852391,-500.0,0.00012996,2]
[339178552,1727275852401,-516.64,0.00012996,2]
[339178553,1727275852410,-500.0,0.00012996,2]
[339178554,1727275852420,-500.0,0.00012996,2]
[339178555,1727275852430,-500.0,0.00012996,2]
[339178556,1727275852439,-412.36,0.00012996,2]
[339178557,1727275852449,-500.0,0.00012996,2]
[339178558,1727275852459,-500.0,0.00012996,2]
[339178559,1727275852468,-770.42,0.00012996,2]
[339178560,1727275852478,-500.0,0.00012996,2]
[339178561,1727275852488,-847.3,0.00012996,2]
[339178562,1727275852498,-500.0,0.00012996,2]
[339178563,1727275852508,-500.0,0.00012996,2]
[339178564,1727275852517,-500.0,0.00012996,2]
[339178565,1727275852527,-186.91765969,0.00012997,2]
[339178566,1727275852537,-186.98507315,0.00012997,2]
[339178567,1727275852547,-500.0,0.00012997,2]
[339178568,1727275852557,-500.0,0.00012997,2]
[339178569,1727275852566,-500.0,0.00012997,2]
[339178570,1727275852577,-500.0,0.00012997,2]
[339178571,1727275852588,-500.0,0.00012997,2]
[339178572,1727275852610,-500.0,0.00012997,2]
[339178573,1727275852626,-329.04,0.00012997,2]
[339178574,1727275852636,-500.0,0.00012997,2]
[339178575,1727275852648,-500.0,0.00012997,2]
[339178576,1727275852663,-500.0,0.00012997,2]
[339178577,1727275852678,-500.0,0.00012997,2]
[339178578,1727275852688,-500.0,0.00012997,2]
[339178579,1727275852698,-500.0,0.00012997,2]
[339178580,1727275852708,-500.0,0.00012997,2]
[339178581,1727275852717,-501.19,0.00012997,2]
[339178582,1727275852727,-501.19,0.00012997,2]
[339178583,1727275852736,-512.81,0.00012997,2]
[339178584,1727275852746,-512.81,0.00012997,2]
[339178585,1727275852756,-500.0,0.00012997,2]
[339178586,1727275852766,-500.0,0.00012997,2]
[339178587,1727275852776,-500.0,0.00012997,2]
[339178588,1727275852785,-500.0,0.00012997,2]
[339178589,1727275852795,-500.0,0.00012997,2]
[339178590,1727275852805,-304.39,0.00012997,2]
[339178591,1727275852818,-500.0,0.00012997,2]
[339178592,1727275852827,-500.0,0.00012997,2]
[339178593,1727275852837,-500.0,0.00012997,2]
[339178594,1727275852849,-500.0,0.00012997,2]
[339178595,1727275852859,-500.0,0.00012997,2]
[339178596,1727275852869,-500.0,0.00012997,2]
[339178597,1727275852878,-500.0,0.00012997,2]
[339178598,1727275852887,-500.0,0.00012997,2]
[339178599,1727275852899,-500.0,0.00012997,2]
[339178600,1727275852909,-500.0,0.00012997,2]
[339178601,1727275852919,-500.0,0.00012997,2]
[339178602,1727275852928,-500.0,0.00012997,2]
[339178603,1727275852937,-500.0,0.00012997,2]
[339178604,1727275852947,-500.0,0.00012997,2]
[339178605,1727275852956,-500.0,0.00012997,2]
[339178606,1727275852966,-500.0,0.00012997,2]
[339178607,1727275852975,-529.21,0.00012997,2]
[339178608,1727275852985,-1482.78,0.00012997,2]
[339178609,1727275852995,-500.0,0.00012997,2]
[339178610,1727275853004,-414.43327461,0.00012997,2]
[339178611,1727275853019,-139.63672539,0.00012997,2]
[339178612,1727275853030,-500.0,0.00012997,2]
[339178613,1727275853040,-722.51117508,0.00012997,2]
[339178614,1727275853051,-930.51620209,0.00012997,2]
[339178615,1727275853063,-423.04262283,0.00012997,2]
[339178616,1727275853073,-500.0,0.00012997,2]
[339178617,1727275853082,-940.22,0.00012997,2]
[339178618,1727275853092,-500.0,0.00012997,2]
[339178619,1727275853105,-500.0,0.00012997,2]
[339178620,1727275853115,-500.0,0.00012997,2]
[339178621,1727275853124,-727.6,0.00012997,2]
[339178622,1727275853134,-500.0,0.00012997,2]
[339178623,1727275853143,-500.0,0.00012997,2]
[339178624,1727275853152,-712.95,0.00012997,2]
[339178625,1727275853162,-4.51727703,0.00012997,2]
[339178626,1727275853173,-561.81272297,0.00012997,2]
[339178627,1727275853184,-500.0,0.00012997,2]
[339178628,1727275853199,-500.0,0.00012997,2]
[339178629,1727275853212,-500.0,0.00012997,2]
[339178630,1727275853222,-500.0,0.00012997,2]
[339178631,1727275853232,-142.81851157,0.00012997,2]
[339178632,1727275853245,-357.18148843,0.00012997,2]
[339178633,1727275853255,-104.40273328,0.00012997,2]
[339178634,1727275853267,-381.07750009,0.00012997,2]
[339178635,1727275853280,-14.51976663,0.00012997,2]
[339178636,1727275853290,-310.44391319,0.00012997,2]
[339178637,1727275853303,-189.55608681,0.00012997,2]
[339178638,1727275853314,-500.0,0.00012997,2]
[339178639,1727275853325,-500.0,0.00012997,2]
[339178640,1727275853335,-647.8,0.00012997,2]
[339178641,1727275853347,-2.5838426,0.00012997,2]
[339178642,1727275853360,-497.4161574,0.00012997,2]
[339178643,1727275853370,-500.0,0.00012997,2]
[339178644,1727275853380,-500.0,0.00012997,2]
[339178645,1727275853391,-500.0,0.00012997,2]
[339178646,1727275853401,-450.57004257,0.00012997,2]
[339178647,1727275853413,-49.42995743,0.00012997,2]
[339178648,1727275853423,-436.27335356,0.00012997,2]
[339178649,1727275853434,-500.0,0.00012997,2]
[339178650,1727275853444,-557.36,0.00012997,2]
[339178651,1727275853454,-500.0,0.00012997,2]
[339178652,1727275853465,-502.08028529,0.00012997,2]
[339178653,1727275853475,-500.0,0.00012997,2]
[339178654,1727275853485,-500.0,0.00012997,2]
[339178655,1727275853496,-500.0,0.00012997,2]
[339178656,1727275853507,-500.0,0.00012997,2]
[339178657,1727275853518,-500.0,0.00012997,2]
[339178658,1727275853529,-500.0,0.00012997,2]
[339178659,1727275853539,-500.0,0.00012997,2]
[339178660,1727275853549,-560.66,0.00012997,2]
[339178661,1727275853559,-560.66,0.00012997,2]
[339178662,1727275853569,-500.0,0.00012997,2]
[339178663,1727275853582,-398.22,0.00012997,2]
[339178664,1727275853598,-500.0,0.00012997,2]
[339178665,1727275853608,-393.08,0.00012997,2]
[339178666,1727275853618,-500.0,0.00012997,2]
[339178667,1727275853629,-1699.42,0.00012997,2]
[339178668,1727275853639,-500.0,0.00012997,2]
[339178669,1727275853653,-500.0,0.00012997,2]
[339178670,1727275853664,-396.15402837,0.00012997,2]
[339178671,1727275853675,-500.0,0.00012997,2]
[339178672,1727275853685,-293.42953824,0.00012997,2]
[339178673,1727275853698,-356.43046176,0.00012997,2]
[339178674,1727275853708,-110.71614952,0.00012997,2]
[339178675,1727275853721,-389.28385048,0.00012997,2]
[339178676,1727275853732,-500.0,0.00012997,2]
[339178677,1727275853742,-500.0,0.00012997,2]
[339178678,1727275853753,-500.0,0.00012997,2]
[339178679,1727275853763,-500.0,0.00012997,2]
[339178680,1727275853773,-500.0,0.00012997,2]
[339178681,1727275853783,-500.0,0.00012997,2]
[339178682,1727275853793,-500.0,0.00012997,2]
[339178683,1727275853803,-500.0,0.00012997,2]
[339178684,1727275853813,-500.0,0.00012997,2]
[339178685,1727275853824,-500.0,0.00012997,2]
[339178686,1727275853833,-500.0,0.00012997,2]
[339178687,1727275853844,-500.0,0.00012997,2]
[339178688,1727275853854,-516.64,0.00012997,2]
[339178689,1727275853864,-159.1,0.00012997,2]
[339178690,1727275853874,-516.64,0.00012997,2]
[339178691,1727275853884,-172.94,0.00012997,2]
[339178692,1727275853894,-252.56,0.00012997,7]
[339178693,1727275853904,-500.0,0.00012997,2]
[339178694,1727275853918,-500.0,0.00012997,2]
[339178695,1727275853929,-500.0,0.00012997,2]
[339178696,1727275853939,-500.0,0.00012997,2]
[339178697,1727275853949,-500.0,0.00012997,2]
[339178698,1727275853960,-500.0,0.00012997,2]
[339178699,1727275853970,-500.0,0.00012997,2]
[339178700,1727275853980,-1348.86,0.00012997,2]
[339178701,1727275853990,-1348.86,0.00012997,2]
[339178702,1727275854001,-854.27022407,0.00012997,2]
[339178703,1727275854149,-494.58977593,0.00012997,2]
[339178704,1727275854159,-363.62622407,0.00012997,2]
[339178705,1727275854172,-136.37377593,0.00012997,2]
[339178706,1727275854182,-500.0,0.00012997,2]
[339178707,1727275854193,-500.0,0.00012997,2]
[339178708,1727275854203,-500.0,0.00012997,2]
[339178709,1727275854216,-636.19,0.00012997,2]
[339178710,1727275854226,-500.0,0.00012997,2]
[339178711,1727275854237,-390.03622415,0.00012997,2]
[339178712,1727275854250,-109.96377585,0.00012997,2]
[339178713,1727275854260,-725.74970072,0.00012997,2]
[339178714,1727275854272,-63.14029928,0.00012997,2]
[339178715,1727275854283,-943.17,0.00012997,2]
[339178716,1727275854294,-284.30843961,0.00012997,2]
[339178717,1727275854306,-658.86156039,0.00012997,2]
[339178718,1727275854317,-943.17,0.00012997,2]
[339178719,1727275854327,-500.0,0.00012997,2]
[339178720,1727275854339,-500.0,0.00012997,2]
[339178721,1727275854352,-1058.49,0.00012997,2]
[339178722,1727275854362,-500.0,0.00012997,2]
[339178723,1727275854372,-500.0,0.00012997,2]
[339178724,1727275854382,-500.0,0.00012997,2]
[339178725,1727275854392,-500.0,0.00012997,2]
[339178726,1727275854403,-500.0,0.00012997,2]
[339178727,1727275854413,-500.0,0.00012997,2]
[339178728,1727275854423,-500.0,0.00012997,2]
[339178729,1727275854433,-847.3,0.00012997,2]
[339178730,1727275854444,-544.64,0.00012997,2]
[339178731,1727275854454,-500.0,0.00012997,2]
[339178732,1727275854464,-500.0,0.00012997,2]
[339178733,1727275854474,-500.0,0.00012997,2]
[339178734,1727275854483,-500.0,0.00012997,2]
[339178735,1727275854494,-500.0,0.00012997,2]
[339178736,1727275854504,-632.24,0.00012997,2]
[339178737,1727275854513,-323.25,0.00012997,2]
[339178738,1727275854524,-500.0,0.00012997,2]
[339178739,1727275854534,-500.0,0.00012998,2]
[339178740,1727275854544,-149.31952021,0.00012998,2]
[339178741,1727275854557,-350.68047979,0.00012998,2]
[339178742,1727275854567,-500.0,0.00012998,2]
[339178743,1727275854578,-500.0,0.00012998,2]
[339178744,1727275854588,-1.9137499,0.00012998,2]
[339178745,1727275854602,-498.0862501,0.00012998,2]
[339178746,1727275854613,-473.9334109,0.00012998,2]
[339178747,1727275854626,-26.0665891,0.00012998,2]
[339178748,1727275854636,-500.0,0.00012998,2]
[339178749,1727275854646,-500.0,0.00012998,2]
[339178750,1727275854655,-361.31979865,0.00012998,2]
[339178751,1727275854668,-138.68020135,0.00012998,2]
[339178752,1727275854678,-500.0,0.00012998,2]
[339178753,1727275854688,-500.0,0.00012998,2]
[339178754,1727275854698,-216.34795864,0.00012998,2]
[339178755,1727275854710,-283.65204136,0.00012998,2]
[339178756,1727275854720,-500.0,0.00012998,2]
[339178757,1727275854730,-500.0,0.00012998,2]
[339178758,1727275854741,-500.0,0.00012998,2]
[339178759,1727275854765,-500.0,0.00012998,2]
[339178760,1727275854775,-535.12,0.00012998,2]
[339178761,1727275854786,-500.0,0.00012998,2]
[339178762,1727275854796,-500.0,0.00012998,2]
[339178763,1727275854806,-500.0,0.00012998,2]
[339178764,1727275854816,-403.12,0.00012998,2]